[Event "Early-Titled-Tuesday-Blitz-September-05-2023"]
[Site "Chess.com"]
[Date "2023.09.05"]
[Round "6"]
[White "Shuvalov"]
[Black "effefe"]
[Result "1-0"]
[WhiteElo "2494"]
[BlackElo "2352"]
[TimeControl "180+1"]
[EndTime "9:05:57 PDT"]
[Termination "Shuvalov won by checkmate"]

1. d4 {[%clk 0:02:57.5]} 1... Nf6 {[%clk 0:02:59.8]} 2. c4 {[%clk 0:02:56.8]}
2... g6 {[%clk 0:02:59.5]} 3. Nc3 {[%clk 0:02:56.8]} 3... Bg7 {[%clk 0:02:59.7]}
4. e4 {[%clk 0:02:56.5]} 4... d6 {[%clk 0:02:59.7]} 5. Nf3 {[%clk 0:02:56.7]}
5... O-O {[%clk 0:03:00.2]} 6. Be2 {[%clk 0:02:57]} 6... e5 {[%clk 0:02:59]} 7.
O-O {[%clk 0:02:57.5]} 7... Nc6 {[%clk 0:02:58.8]} 8. d5 {[%clk 0:02:55.5]} 8...
Ne7 {[%clk 0:02:57.5]} 9. Ne1 {[%clk 0:02:55.5]} 9... Nd7 {[%clk 0:02:57.6]} 10.
f3 {[%clk 0:02:55.5]} 10... f5 {[%clk 0:02:57.2]} 11. g4 {[%clk 0:02:55.7]}
11... h5 {[%clk 0:02:55]} 12. g5 {[%clk 0:02:55.4]} 12... f4 {[%clk 0:02:52.8]}
13. h4 {[%clk 0:02:54.9]} 13... a5 {[%clk 0:02:47.5]} 14. Rf2 {[%clk 0:02:54.4]}
14... Nc5 {[%clk 0:02:47.4]} 15. b3 {[%clk 0:02:49.9]} 15... c6 {[%clk
0:02:44.7]} 16. Ba3 {[%clk 0:02:39]} 16... cxd5 {[%clk 0:02:43.4]} 17. cxd5
{[%clk 0:02:38]} 17... Bd7 {[%clk 0:02:37.6]} 18. Rc1 {[%clk 0:02:28.7]} 18...
Qb6 {[%clk 0:02:25.7]} 19. Kg2 {[%clk 0:02:09.1]} 19... Rfc8 {[%clk 0:02:17.9]}
20. Bf1 {[%clk 0:02:03.2]} 20... Rc7 {[%clk 0:01:51.3]} 21. Rfc2 {[%clk
0:02:02.4]} 21... Rac8 {[%clk 0:01:49.8]} 22. Bxc5 {[%clk 0:01:57.1]} 22... Rxc5
{[%clk 0:01:48.2]} 23. Nd3 {[%clk 0:01:49]} 23... R5c7 {[%clk 0:01:29.8]} 24.
Nb2 {[%clk 0:01:48.7]} 24... Bf8 {[%clk 0:01:21.3]} 25. Nc4 {[%clk 0:01:47.9]}
25... Qd4 {[%clk 0:00:47.5]} 26. a4 {[%clk 0:00:59.4]} 26... Qxd1 {[%clk
0:00:36.9]} 27. Rxd1 {[%clk 0:01:00.3]} 27... Kg7 {[%clk 0:00:29]} 28. Rdc1
{[%clk 0:00:58]} 28... Ng8 {[%clk 0:00:29]} 29. Kh2 {[%clk 0:00:57.2]} 29... Rc5
{[%clk 0:00:27.1]} 30. Bh3 {[%clk 0:00:56.3]} 30... Bxh3 {[%clk 0:00:26.5]} 31.
Kxh3 {[%clk 0:00:57.2]} 31... Be7 {[%clk 0:00:25.7]} 32. Nb5 {[%clk 0:00:56.8]}
32... Kf8 {[%clk 0:00:13]} 33. Kg2 {[%clk 0:00:56.1]} 33... Kg7 {[%clk
0:00:12.2]} 34. Kf2 {[%clk 0:00:56.3]} 34... Kf8 {[%clk 0:00:12.8]} 35. Ke2
{[%clk 0:00:56.6]} 35... Kg7 {[%clk 0:00:13.1]} 36. Kd3 {[%clk 0:00:56.9]} 36...
Kf8 {[%clk 0:00:04.9]} 37. Ncxd6 {[%clk 0:00:53.4]} 37... Bxd6 {[%clk
0:00:05.1]} 38. Nxd6 {[%clk 0:00:54.2]} 38... Rxc2 {[%clk 0:00:04.3]} 39. Rxc2
{[%clk 0:00:55.1]} 39... Rxc2 {[%clk 0:00:02.2]} 40. Kxc2 {[%clk 0:00:56]} 40...
b6 {[%clk 0:00:02.5]} 41. Nc8 {[%clk 0:00:54.7]} 41... Ne7 {[%clk 0:00:02.3]}
42. Nxe7 {[%clk 0:00:53.6]} 42... Kxe7 {[%clk 0:00:02.6]} 43. Kc3 {[%clk
0:00:53.8]} 43... Kd7 {[%clk 0:00:02.1]} 44. Kc4 {[%clk 0:00:53.2]} 44... Kc7
{[%clk 0:00:02.4]} 45. Kb5 {[%clk 0:00:50.6]} 45... Kb7 {[%clk 0:00:02.5]} 46.
d6 {[%clk 0:00:50.3]} 46... Kb8 {[%clk 0:00:01.4]} 47. Kc6 {[%clk 0:00:49.5]}
47... Kc8 {[%clk 0:00:02.3]} 48. d7+ {[%clk 0:00:48.1]} 48... Kd8 {[%clk
0:00:03]} 49. Kd6 {[%clk 0:00:48.3]} 49... b5 {[%clk 0:00:03.1]} 50. axb5 {[%clk
0:00:48.7]} 50... a4 {[%clk 0:00:04]} 51. b6 {[%clk 0:00:49.1]} 51... axb3
{[%clk 0:00:04.9]} 52. b7 {[%clk 0:00:49.5]} 52... b2 {[%clk 0:00:05.8]} 53.
b8=Q# {[%clk 0:00:49.8]} 1-0

[Event "Early-Titled-Tuesday-Blitz-September-05-2023"]
[Site "Chess.com"]
[Date "2023.09.05"]
[Round "6"]
[White "jlf287"]
[Black "kikoveiga"]
[Result "0-1"]
[WhiteElo "2475"]
[BlackElo "2601"]
[TimeControl "180+1"]
[EndTime "9:05:58 PDT"]
[Termination "kikoveiga won on time"]

1. d4 {[%clk 0:03:00.9]} 1... Nf6 {[%clk 0:02:54.9]} 2. c4 {[%clk 0:02:59.1]}
2... e6 {[%clk 0:02:53]} 3. g3 {[%clk 0:02:57.8]} 3... Bb4+ {[%clk 0:02:51.9]}
4. Nd2 {[%clk 0:02:57.2]} 4... d5 {[%clk 0:02:51.8]} 5. Bg2 {[%clk 0:02:56.3]}
5... O-O {[%clk 0:02:50.8]} 6. Nf3 {[%clk 0:02:56.4]} 6... dxc4 {[%clk
0:02:50.9]} 7. Qc2 {[%clk 0:02:55.5]} 7... b5 {[%clk 0:02:46.2]} 8. a3 {[%clk
0:02:35.6]} 8... Bxd2+ {[%clk 0:02:44.9]} 9. Bxd2 {[%clk 0:02:35.8]} 9... Bb7
{[%clk 0:02:44.1]} 10. b3 {[%clk 0:02:34.1]} 10... cxb3 {[%clk 0:02:43.2]} 11.
Qxb3 {[%clk 0:02:34.4]} 11... a6 {[%clk 0:02:42.9]} 12. a4 {[%clk 0:02:31.7]}
12... Nc6 {[%clk 0:02:40.7]} 13. e3 {[%clk 0:02:17.8]} 13... Qd5 {[%clk
0:02:22.6]} 14. Qc2 {[%clk 0:02:18.1]} 14... Qd6 {[%clk 0:01:56.8]} 15. O-O
{[%clk 0:02:13.1]} 15... b4 {[%clk 0:01:52.2]} 16. Rfc1 {[%clk 0:02:06.6]} 16...
a5 {[%clk 0:01:37.6]} 17. Ne1 {[%clk 0:02:05.1]} 17... Ra6 {[%clk 0:01:34.8]}
18. Nd3 {[%clk 0:02:04.5]} 18... Nd7 {[%clk 0:01:30.1]} 19. Nc5 {[%clk
0:01:41.6]} 19... Nxc5 {[%clk 0:01:28.6]} 20. Qxc5 {[%clk 0:01:42.5]} 20... Qd7
{[%clk 0:01:08.5]} 21. Rc4 {[%clk 0:01:33.1]} 21... Rc8 {[%clk 0:01:08.1]} 22.
Rac1 {[%clk 0:01:32.7]} 22... Nd8 {[%clk 0:01:07.6]} 23. Bf1 {[%clk 0:01:02.4]}
23... Raa8 {[%clk 0:00:53.1]} 24. Qg5 {[%clk 0:00:52.4]} 24... h6 {[%clk
0:00:51.7]} 25. Qf4 {[%clk 0:00:49.4]} 25... c6 {[%clk 0:00:30.2]} 26. Rc5
{[%clk 0:00:42.3]} 26... Ba6 {[%clk 0:00:23.5]} 27. Bg2 {[%clk 0:00:42.2]} 27...
Bd3 {[%clk 0:00:20.6]} 28. h4 {[%clk 0:00:21.9]} 28... b3 {[%clk 0:00:19.7]} 29.
Bc3 {[%clk 0:00:19.3]} 29... Nb7 {[%clk 0:00:15.2]} 30. Re5 {[%clk 0:00:14.6]}
30... Nd6 {[%clk 0:00:15.4]} 31. e4 {[%clk 0:00:12.8]} 31... Nc4 {[%clk
0:00:14.9]} 32. Rh5 {[%clk 0:00:03]} 32... b2 {[%clk 0:00:14.5]} 33. Bxb2 {[%clk
0:00:02.3]} 33... Nxb2 {[%clk 0:00:14.7]} 34. d5 {[%clk 0:00:01.6]} 34... cxd5
{[%clk 0:00:12.9]} 0-1

[Event "Early-Titled-Tuesday-Blitz-September-05-2023"]
[Site "Chess.com"]
[Date "2023.09.05"]
[Round "6"]
[White "WildTricks"]
[Black "Logman74"]
[Result "1-0"]
[WhiteElo "2642"]
[BlackElo "2486"]
[TimeControl "180+1"]
[EndTime "9:05:59 PDT"]
[Termination "WildTricks won on time"]

1. Nf3 {[%clk 0:03:00.9]} 1... d5 {[%clk 0:02:57.3]} 2. g3 {[%clk 0:02:59.8]}
2... Nf6 {[%clk 0:02:55.3]} 3. Bg2 {[%clk 0:03:00.2]} 3... Bf5 {[%clk
0:02:55.3]} 4. O-O {[%clk 0:02:59.4]} 4... e6 {[%clk 0:02:54.2]} 5. d3 {[%clk
0:02:59.8]} 5... h6 {[%clk 0:02:54.5]} 6. c4 {[%clk 0:03:00]} 6... c6 {[%clk
0:02:54.2]} 7. cxd5 {[%clk 0:03:00.4]} 7... exd5 {[%clk 0:02:54.1]} 8. Nc3
{[%clk 0:03:00.7]} 8... Be7 {[%clk 0:02:53.7]} 9. Nd4 {[%clk 0:02:52.7]} 9...
Bg6 {[%clk 0:02:51.1]} 10. e4 {[%clk 0:02:53.2]} 10... dxe4 {[%clk 0:02:46.5]}
11. dxe4 {[%clk 0:02:54.1]} 11... O-O {[%clk 0:02:45.7]} 12. Re1 {[%clk
0:02:25.3]} 12... Bc5 {[%clk 0:02:39.2]} 13. Be3 {[%clk 0:02:24.4]} 13... Nbd7
{[%clk 0:02:37.2]} 14. h3 {[%clk 0:02:07.9]} 14... Re8 {[%clk 0:02:35.5]} 15.
Qb3 {[%clk 0:01:52.9]} 15... Qb6 {[%clk 0:02:20.6]} 16. Qc4 {[%clk 0:01:29.6]}
16... Nxe4 {[%clk 0:02:11.6]} 17. Nxc6 {[%clk 0:01:01.1]} 17... Bxe3 {[%clk
0:02:03.4]} 18. Rxe3 {[%clk 0:01:02]} 18... Nxc3 {[%clk 0:01:59.5]} 19. Ne7+
{[%clk 0:00:55.3]} 19... Rxe7 {[%clk 0:01:48.1]} 20. Rxe7 {[%clk 0:00:56.2]}
20... Qxb2 {[%clk 0:01:47.8]} 21. Rae1 {[%clk 0:00:50.6]} 21... Nf8 {[%clk
0:01:47.2]} 22. Rxb7 {[%clk 0:00:47.6]} 22... Qd2 {[%clk 0:01:40.6]} 23. Ree7
{[%clk 0:00:43.1]} 23... Kh8 {[%clk 0:00:39.7]} 24. Rbc7 {[%clk 0:00:29.6]}
24... Ne6 {[%clk 0:00:21.9]} 25. Bxa8 {[%clk 0:00:16]} 25... Nxc7 {[%clk
0:00:20.5]} 26. Rxc7 {[%clk 0:00:16.5]} 26... Ne2+ {[%clk 0:00:19.1]} 27. Kg2
{[%clk 0:00:13.9]} 27... Qd1 {[%clk 0:00:17.4]} 28. Be4 {[%clk 0:00:09.7]} 28...
Bxe4+ {[%clk 0:00:06.2]} 29. Qxe4 {[%clk 0:00:08.6]} 29... Qg1+ {[%clk
0:00:06.8]} 30. Kf3 {[%clk 0:00:08.7]} 1-0

[Event "Early-Titled-Tuesday-Blitz-September-05-2023"]
[Site "Chess.com"]
[Date "2023.09.05"]
[Round "6"]
[White "TC2304"]
[Black "ferrufino64"]
[Result "0-1"]
[WhiteElo "2345"]
[BlackElo "2150"]
[TimeControl "180+1"]
[EndTime "9:05:59 PDT"]
[Termination "ferrufino64 won by resignation"]

1. c4 {[%clk 0:03:00.9]} 1... e5 {[%clk 0:02:57.7]} 2. Nc3 {[%clk 0:03:01.3]}
2... Nf6 {[%clk 0:02:57.2]} 3. g3 {[%clk 0:03:02]} 3... d5 {[%clk 0:02:57.5]} 4.
cxd5 {[%clk 0:03:01.1]} 4... Nxd5 {[%clk 0:02:58.4]} 5. Bg2 {[%clk 0:03:00.9]}
5... Nf6 {[%clk 0:02:58.3]} 6. d3 {[%clk 0:02:56.9]} 6... h6 {[%clk 0:02:55]} 7.
Nf3 {[%clk 0:02:57]} 7... Nc6 {[%clk 0:02:54.7]} 8. O-O {[%clk 0:02:57.4]} 8...
Bd6 {[%clk 0:02:53.5]} 9. a3 {[%clk 0:02:57.3]} 9... a5 {[%clk 0:02:53.5]} 10.
b3 {[%clk 0:02:41.5]} 10... O-O {[%clk 0:02:52.9]} 11. Bb2 {[%clk 0:02:42]}
11... Re8 {[%clk 0:02:52.9]} 12. Qd2 {[%clk 0:02:39.6]} 12... Bg4 {[%clk
0:02:45.3]} 13. Rfc1 {[%clk 0:02:37.7]} 13... Qd7 {[%clk 0:02:41.2]} 14. Nb5
{[%clk 0:02:34.8]} 14... Rad8 {[%clk 0:02:35.8]} 15. Nxd6 {[%clk 0:02:34]} 15...
cxd6 {[%clk 0:02:31.8]} 16. b4 {[%clk 0:02:29.5]} 16... axb4 {[%clk 0:01:48.7]}
17. axb4 {[%clk 0:02:29.4]} 17... Ra8 {[%clk 0:01:48.1]} 18. b5 {[%clk
0:02:21.3]} 18... Ne7 {[%clk 0:01:47.9]} 19. Qb4 {[%clk 0:01:57.8]} 19... Be6
{[%clk 0:01:41.7]} 20. Ne1 {[%clk 0:01:44.3]} 20... Bd5 {[%clk 0:01:29.4]} 21.
Ba3 {[%clk 0:01:35.5]} 21... Bxg2 {[%clk 0:01:28.5]} 22. Nxg2 {[%clk 0:01:36.4]}
22... Red8 {[%clk 0:01:28.2]} 23. Ne3 {[%clk 0:01:33.3]} 23... Ned5 {[%clk
0:01:25]} 24. Nxd5 {[%clk 0:01:33.2]} 24... Nxd5 {[%clk 0:01:25.9]} 25. Qb3
{[%clk 0:01:29.9]} 25... Nf6 {[%clk 0:01:23.1]} 26. b6 {[%clk 0:01:29.1]} 26...
Rdc8 {[%clk 0:01:16.8]} 27. Bb4 {[%clk 0:01:19.6]} 27... Rxa1 {[%clk 0:01:13.7]}
28. Rxa1 {[%clk 0:01:20.5]} 28... Qc6 {[%clk 0:01:06.7]} 29. Ba5 {[%clk
0:00:59.9]} 29... Nd7 {[%clk 0:00:47.4]} 30. Rb1 {[%clk 0:00:59]} 30... Nc5
{[%clk 0:00:47.4]} 31. Qb5 {[%clk 0:00:57.6]} 31... Ne6 {[%clk 0:00:46.4]} 32.
e3 {[%clk 0:00:49.1]} 32... Qxb5 {[%clk 0:00:38.6]} 33. Rxb5 {[%clk 0:00:48.8]}
33... Rc6 {[%clk 0:00:39.4]} 34. Rd5 {[%clk 0:00:45.4]} 34... Kf8 {[%clk
0:00:30.8]} 35. Kf1 {[%clk 0:00:38.2]} 35... Ke7 {[%clk 0:00:30.9]} 36. Ke2
{[%clk 0:00:38.4]} 36... Nc5 {[%clk 0:00:26.3]} 37. Bb4 {[%clk 0:00:34]} 37...
Ke6 {[%clk 0:00:22.3]} 38. e4 {[%clk 0:00:32.3]} 38... Nb3 {[%clk 0:00:22.4]}
39. Rb5 {[%clk 0:00:22.7]} 39... Nd4+ {[%clk 0:00:22]} 40. Ke3 {[%clk 0:00:23]}
40... Nxb5 {[%clk 0:00:22.9]} 41. f4 {[%clk 0:00:23.4]} 41... f6 {[%clk
0:00:23]} 42. f5+ {[%clk 0:00:23.4]} 42... Kd7 {[%clk 0:00:23.4]} 43. g4 {[%clk
0:00:23.7]} 43... Rxb6 {[%clk 0:00:23.7]} 44. h4 {[%clk 0:00:24]} 44... Nd4
{[%clk 0:00:23.9]} 45. Ba5 {[%clk 0:00:22.7]} 45... Ra6 {[%clk 0:00:22.6]} 46.
Be1 {[%clk 0:00:19.9]} 46... Nc2+ {[%clk 0:00:22.1]} 47. Kd2 {[%clk 0:00:19.9]}
47... Nxe1 {[%clk 0:00:23]} 48. Kxe1 {[%clk 0:00:20.8]} 48... d5 {[%clk
0:00:23.4]} 0-1

[Event "Early-Titled-Tuesday-Blitz-September-05-2023"]
[Site "Chess.com"]
[Date "2023.09.05"]
[Round "6"]
[White "Bilan_Danila"]
[Black "chess94cu"]
[Result "0-1"]
[WhiteElo "2547"]
[BlackElo "2721"]
[TimeControl "180+1"]
[EndTime "9:06:00 PDT"]
[Termination "chess94cu won by resignation"]

1. d4 {[%clk 0:03:00.9]} 1... Nf6 {[%clk 0:02:59.5]} 2. Nf3 {[%clk 0:03:01.4]}
2... e6 {[%clk 0:02:59.3]} 3. g3 {[%clk 0:02:58.5]} 3... b6 {[%clk 0:02:59.3]}
4. Bg2 {[%clk 0:02:58.3]} 4... Bb7 {[%clk 0:03:00]} 5. O-O {[%clk 0:02:59.2]}
5... Be7 {[%clk 0:02:59.6]} 6. c4 {[%clk 0:02:59.9]} 6... O-O {[%clk 0:03:00.2]}
7. d5 {[%clk 0:03:00.5]} 7... exd5 {[%clk 0:02:57]} 8. Nh4 {[%clk 0:03:00.6]}
8... Ne4 {[%clk 0:02:45.2]} 9. cxd5 {[%clk 0:02:59.8]} 9... Bxh4 {[%clk
0:02:26.4]} 10. Bxe4 {[%clk 0:03:00.1]} 10... Bf6 {[%clk 0:02:27.1]} 11. Nc3
{[%clk 0:02:56.6]} 11... d6 {[%clk 0:02:26.9]} 12. Qd3 {[%clk 0:02:47.5]} 12...
h6 {[%clk 0:02:23.1]} 13. Qf3 {[%clk 0:02:24]} 13... Nd7 {[%clk 0:02:15]} 14.
Qf5 {[%clk 0:02:13.8]} 14... g6 {[%clk 0:02:14.3]} 15. Qh3 {[%clk 0:02:07.5]}
15... h5 {[%clk 0:02:13.8]} 16. Bh6 {[%clk 0:01:44.1]} 16... Re8 {[%clk
0:02:13.1]} 17. Bf3 {[%clk 0:01:13.4]} 17... Ne5 {[%clk 0:02:09.3]} 18. Rad1
{[%clk 0:00:59.4]} 18... Bc8 {[%clk 0:01:36.4]} 19. Qg2 {[%clk 0:00:55.2]} 19...
Bd7 {[%clk 0:01:35.2]} 20. Rfe1 {[%clk 0:00:42.6]} 20... Qc8 {[%clk 0:01:30.3]}
21. h4 {[%clk 0:00:40.2]} 21... Bh3 {[%clk 0:01:26.5]} 22. Qh1 {[%clk
0:00:38.4]} 22... Bf5 {[%clk 0:01:18.3]} 23. Be4 {[%clk 0:00:24]} 23... Ng4
{[%clk 0:01:14.7]} 24. Bf4 {[%clk 0:00:11.1]} 24... Bxc3 {[%clk 0:01:04.8]} 25.
Bxf5 {[%clk 0:00:10.8]} 25... Qxf5 {[%clk 0:01:05.5]} 26. bxc3 {[%clk 0:00:11]}
26... Re7 {[%clk 0:01:05.6]} 27. e4 {[%clk 0:00:09.7]} 27... Qd7 {[%clk
0:01:02.9]} 28. Rd2 {[%clk 0:00:04.2]} 28... Rae8 {[%clk 0:00:59.5]} 29. Rde2
{[%clk 0:00:03.9]} 29... Qb5 {[%clk 0:00:51.6]} 30. Qf3 {[%clk 0:00:01.6]} 30...
Qc4 {[%clk 0:00:51.8]} 31. Bg5 {[%clk 0:00:01.8]} 31... Rd7 {[%clk 0:00:48.9]}
32. Bf4 {[%clk 0:00:01.5]} 32... b5 {[%clk 0:00:48]} 33. Bg5 {[%clk 0:00:01.7]}
33... c6 {[%clk 0:00:32.7]} 34. Bf6 {[%clk 0:00:02.2]} 34... Nxf6 {[%clk
0:00:22.6]} 35. Qxf6 {[%clk 0:00:01.9]} 35... cxd5 {[%clk 0:00:23.3]} 36. exd5
{[%clk 0:00:02]} 36... Rxe2 {[%clk 0:00:22.7]} 37. Rxe2 {[%clk 0:00:01.5]} 37...
Qxe2 {[%clk 0:00:23.6]} 0-1

[Event "Early-Titled-Tuesday-Blitz-September-05-2023"]
[Site "Chess.com"]
[Date "2023.09.05"]
[Round "6"]
[White "tptagain"]
[Black "mishanick"]
[Result "0-1"]
[WhiteElo "2917"]
[BlackElo "3072"]
[TimeControl "180+1"]
[EndTime "9:06:02 PDT"]
[Termination "mishanick won by resignation"]

1. Nf3 {[%clk 0:03:00.9]} 1... d5 {[%clk 0:02:59.8]} 2. c4 {[%clk 0:03:01]} 2...
d4 {[%clk 0:02:59.9]} 3. b4 {[%clk 0:03:01.2]} 3... f6 {[%clk 0:02:59.6]} 4. e3
{[%clk 0:03:01]} 4... e5 {[%clk 0:02:58.4]} 5. c5 {[%clk 0:03:01.1]} 5... a5
{[%clk 0:02:54.3]} 6. Qa4+ {[%clk 0:03:00.8]} 6... Qd7 {[%clk 0:02:53]} 7. Bb5
{[%clk 0:02:59.8]} 7... c6 {[%clk 0:02:53.1]} 8. Bc4 {[%clk 0:02:59.3]} 8...
dxe3 {[%clk 0:02:53.3]} 9. fxe3 {[%clk 0:02:51.7]} 9... Qg4 {[%clk 0:02:53]} 10.
b5 {[%clk 0:02:32.6]} 10... Be6 {[%clk 0:02:00.4]} 11. Bb3 {[%clk 0:01:47.9]}
11... Qxa4 {[%clk 0:01:59]} 12. Bxa4 {[%clk 0:01:48.5]} 12... Bxc5 {[%clk
0:01:58.6]} 13. O-O {[%clk 0:01:45.2]} 13... Ne7 {[%clk 0:01:57.2]} 14. d4
{[%clk 0:01:42.1]} 14... exd4 {[%clk 0:01:55.7]} 15. exd4 {[%clk 0:01:42.1]}
15... Bb6 {[%clk 0:01:55.5]} 16. Ba3 {[%clk 0:01:35.9]} 16... cxb5 {[%clk
0:01:39.7]} 17. Bxb5+ {[%clk 0:01:35.7]} 17... Nbc6 {[%clk 0:01:40.2]} 18. Nc3
{[%clk 0:01:02.6]} 18... O-O-O {[%clk 0:01:37.9]} 19. Na4 {[%clk 0:01:02.9]}
19... Ba7 {[%clk 0:01:38.2]} 20. Bc5 {[%clk 0:00:46.9]} 20... Bxc5 {[%clk
0:01:34.9]} 21. dxc5 {[%clk 0:00:47.3]} 21... Kc7 {[%clk 0:01:23.6]} 22. Nb6
{[%clk 0:00:40.4]} 22... Nd5 {[%clk 0:01:14.4]} 23. Rfe1 {[%clk 0:00:40.7]}
23... Bf7 {[%clk 0:00:49]} 24. Rac1 {[%clk 0:00:20.7]} 24... Rhe8 {[%clk
0:00:46]} 25. Rxe8 {[%clk 0:00:19.7]} 25... Rxe8 {[%clk 0:00:46.9]} 26. Nc4
{[%clk 0:00:19.8]} 26... Re7 {[%clk 0:00:34.1]} 27. Bxc6 {[%clk 0:00:18.6]}
27... bxc6 {[%clk 0:00:32]} 28. Nxa5 {[%clk 0:00:18.9]} 28... Nf4 {[%clk
0:00:27.2]} 29. Nd4 {[%clk 0:00:17.6]} 29... Bd5 {[%clk 0:00:24.1]} 30. Rb1
{[%clk 0:00:15.6]} 30... Rd7 {[%clk 0:00:15.7]} 31. g3 {[%clk 0:00:11]} 31...
Nd3 {[%clk 0:00:14.3]} 32. Rb7+ {[%clk 0:00:06.9]} 32... Kc8 {[%clk 0:00:14.7]}
33. Rb6 {[%clk 0:00:06.9]} 33... Nxc5 {[%clk 0:00:13.8]} 34. Ndxc6 {[%clk
0:00:07.4]} 34... Kc7 {[%clk 0:00:14]} 35. Rb7+ {[%clk 0:00:07.9]} 35... Nxb7
{[%clk 0:00:13.6]} 0-1

[Event "Early-Titled-Tuesday-Blitz-September-05-2023"]
[Site "Chess.com"]
[Date "2023.09.05"]
[Round "6"]
[White "CFalcons8"]
[Black "AquivaRubinstein"]
[Result "0-1"]
[WhiteElo "2278"]
[BlackElo "2468"]
[TimeControl "180+1"]
[EndTime "9:06:03 PDT"]
[Termination "AquivaRubinstein won by checkmate"]

1. e4 {[%clk 0:03:00.9]} 1... Nf6 {[%clk 0:02:58.9]} 2. e5 {[%clk 0:03:00.5]}
2... Nd5 {[%clk 0:02:59.2]} 3. d4 {[%clk 0:03:00.7]} 3... d6 {[%clk 0:02:59.7]}
4. c4 {[%clk 0:03:01]} 4... Nb6 {[%clk 0:03:00.1]} 5. exd6 {[%clk 0:03:01.5]}
5... cxd6 {[%clk 0:03:00.6]} 6. Nc3 {[%clk 0:03:01.8]} 6... g6 {[%clk
0:03:01.1]} 7. Be3 {[%clk 0:03:00]} 7... Bg7 {[%clk 0:03:01.3]} 8. Rc1 {[%clk
0:02:58.3]} 8... O-O {[%clk 0:03:01.5]} 9. b3 {[%clk 0:02:57]} 9... Nc6 {[%clk
0:03:01.7]} 10. Nf3 {[%clk 0:02:56]} 10... Bg4 {[%clk 0:03:01.5]} 11. Be2 {[%clk
0:02:54.2]} 11... d5 {[%clk 0:02:57.2]} 12. c5 {[%clk 0:02:52.8]} 12... Nc8
{[%clk 0:02:57.4]} 13. h3 {[%clk 0:02:52.2]} 13... Bxf3 {[%clk 0:02:57.2]} 14.
Bxf3 {[%clk 0:02:52.8]} 14... e6 {[%clk 0:02:57.8]} 15. O-O {[%clk 0:02:49.9]}
15... N8e7 {[%clk 0:02:57.9]} 16. Nb5 {[%clk 0:02:46.9]} 16... Nf5 {[%clk
0:02:47.2]} 17. g4 {[%clk 0:02:33.4]} 17... a6 {[%clk 0:02:10.8]} 18. gxf5
{[%clk 0:02:05.8]} 18... axb5 {[%clk 0:02:10.9]} 19. fxe6 {[%clk 0:02:05.4]}
19... fxe6 {[%clk 0:02:11.2]} 20. Bg4 {[%clk 0:02:05.3]} 20... Qf6 {[%clk
0:02:08.4]} 21. Qd3 {[%clk 0:01:18.1]} 21... h5 {[%clk 0:01:56.8]} 22. Be2
{[%clk 0:01:09.8]} 22... Rxa2 {[%clk 0:01:56]} 23. Ra1 {[%clk 0:00:50.5]} 23...
Nb4 {[%clk 0:01:27.7]} 24. Qxb5 {[%clk 0:00:46.4]} 24... Rxa1 {[%clk 0:01:25.6]}
25. Rxa1 {[%clk 0:00:47.3]} 25... Nc2 {[%clk 0:01:25.8]} 26. Rf1 {[%clk
0:00:26.6]} 26... Nxe3 {[%clk 0:01:01.7]} 27. fxe3 {[%clk 0:00:27.5]} 27... Qg5+
{[%clk 0:01:01.9]} 28. Kh1 {[%clk 0:00:26.1]} 28... Rxf1+ {[%clk 0:00:56.6]} 29.
Bxf1 {[%clk 0:00:27]} 29... Qxe3 {[%clk 0:00:56.7]} 30. Qd3 {[%clk 0:00:18.1]}
30... Qf2 {[%clk 0:00:46.2]} 31. Bg2 {[%clk 0:00:08.8]} 31... Kh7 {[%clk
0:00:38.5]} 32. Qf3 {[%clk 0:00:04.9]} 32... Qxd4 {[%clk 0:00:30.8]} 33. Qf7
{[%clk 0:00:02.1]} 33... Qxc5 {[%clk 0:00:16.7]} 34. Qxe6 {[%clk 0:00:02.5]}
34... Qc1+ {[%clk 0:00:16.2]} 35. Kh2 {[%clk 0:00:02.1]} 35... Qf4+ {[%clk
0:00:16.2]} 36. Kh1 {[%clk 0:00:01.7]} 36... Be5 {[%clk 0:00:13.3]} 37. Qxd5
{[%clk 0:00:01.2]} 37... Qh2# {[%clk 0:00:13]} 0-1

[Event "Early-Titled-Tuesday-Blitz-September-05-2023"]
[Site "Chess.com"]
[Date "2023.09.05"]
[Round "6"]
[White "BigPiano"]
[Black "CraiggoryC"]
[Result "1-0"]
[WhiteElo "2401"]
[BlackElo "2208"]
[TimeControl "180+1"]
[EndTime "9:06:04 PDT"]
[Termination "BigPiano won on time"]

1. d4 {[%clk 0:03:00.9]} 1... e6 {[%clk 0:02:18.8]} 2. c4 {[%clk 0:03:00.3]}
2... Nf6 {[%clk 0:02:17.3]} 3. g3 {[%clk 0:03:00.1]} 3... d5 {[%clk 0:02:17.6]}
4. Bg2 {[%clk 0:03:00.3]} 4... Be7 {[%clk 0:02:18.3]} 5. Nf3 {[%clk 0:03:00.7]}
5... O-O {[%clk 0:02:19]} 6. O-O {[%clk 0:02:56.8]} 6... dxc4 {[%clk 0:02:19.4]}
7. Qc2 {[%clk 0:02:57]} 7... a6 {[%clk 0:02:19.7]} 8. a4 {[%clk 0:02:56.8]} 8...
Bd7 {[%clk 0:02:19.6]} 9. Qxc4 {[%clk 0:02:56.9]} 9... Bc6 {[%clk 0:02:20.3]}
10. Bg5 {[%clk 0:02:55.7]} 10... a5 {[%clk 0:02:18.9]} 11. Nc3 {[%clk
0:02:54.9]} 11... Na6 {[%clk 0:02:19]} 12. Rfd1 {[%clk 0:02:47]} 12... Nb4
{[%clk 0:02:19]} 13. Qb3 {[%clk 0:02:38.9]} 13... Ne4 {[%clk 0:01:49.5]} 14.
Bxe7 {[%clk 0:02:27.3]} 14... Qxe7 {[%clk 0:01:48.4]} 15. Rac1 {[%clk
0:02:09.6]} 15... Rfd8 {[%clk 0:01:18.3]} 16. Ne5 {[%clk 0:01:16.2]} 16... Nxc3
{[%clk 0:01:17]} 17. bxc3 {[%clk 0:01:15.1]} 17... Bxg2 {[%clk 0:01:10.4]} 18.
Kxg2 {[%clk 0:01:14.5]} 18... Nc6 {[%clk 0:00:48.8]} 19. Qxb7 {[%clk 0:00:55.5]}
19... Nxe5 {[%clk 0:00:48.6]} 20. dxe5 {[%clk 0:00:56.4]} 20... Qc5 {[%clk
0:00:21.2]} 21. Qe4 {[%clk 0:00:48.7]} 21... Rab8 {[%clk 0:00:12.2]} 22. Rd4
{[%clk 0:00:22.9]} 22... h6 {[%clk 0:00:08.8]} 23. Rcd1 {[%clk 0:00:20.7]} 23...
Rxd4 {[%clk 0:00:07.1]} 24. Qxd4 {[%clk 0:00:20.7]} 24... Qc6+ {[%clk
0:00:07.4]} 25. f3 {[%clk 0:00:20.5]} 25... Rb2 {[%clk 0:00:06.2]} 26. Rd2
{[%clk 0:00:19.6]} 26... Rxd2 {[%clk 0:00:05.4]} 27. Qxd2 {[%clk 0:00:20.5]}
27... Qxa4 {[%clk 0:00:05.9]} 28. Qd8+ {[%clk 0:00:20.6]} 28... Kh7 {[%clk
0:00:06.2]} 29. Qxc7 {[%clk 0:00:21.1]} 29... Qc2 {[%clk 0:00:05.8]} 30. Kf2
{[%clk 0:00:18.3]} 30... a4 {[%clk 0:00:04.4]} 31. Qa5 {[%clk 0:00:16.5]} 31...
Qb3 {[%clk 0:00:03.3]} 32. Qa8 {[%clk 0:00:12]} 32... a3 {[%clk 0:00:02.9]} 33.
Qe4+ {[%clk 0:00:12]} 33... g6 {[%clk 0:00:03]} 34. Qf4 {[%clk 0:00:11]} 34...
Kg8 {[%clk 0:00:01.6]} 35. Qf6 {[%clk 0:00:09]} 35... a2 {[%clk 0:00:01.4]} 36.
Qd8+ {[%clk 0:00:09]} 36... Kh7 {[%clk 0:00:01.2]} 37. Qe7 {[%clk 0:00:08.3]}
1-0